[Event "Titled Tuesday Blitz April 11 Early 2023"]
[White "Garv Gaur"]
[Black "Zaichenko, Daria"]
[WhiteFideId "45030839"]
[BlackFideId "4197453"]
[WhiteElo "2068"]
[BlackElo "2039"]
[Result "1-0"]
[Round "02"]
[TimeControl "180+2"]
[Date "2023.04.11"]
[WhiteClock "0:00:10"]
[BlackClock "0:00:03"]

1. e4 {[%clk 0:02:52]}  c5 {[%clk 0:02:58]} 2. Nf3 {[%clk 0:02:50]}  Nc6 {[%clk 0:02:54]} 3. g3 {[%clk 0:02:50]}  Nf6 {[%clk 0:02:49]} 4. d3 {[%clk 0:02:49]}  d5 {[%clk 0:02:48]} 5. exd5 {[%clk 0:02:41]}  Nxd5 {[%clk 0:02:48]} 6. Bg2 {[%clk 0:02:41]}  e5 {[%clk 0:02:44]} 7. O-O {[%clk 0:02:41]}  Be7 {[%clk 0:02:43]} 8. Re1 {[%clk 0:02:40]}  f6 {[%clk 0:02:42]} 9. Nc3 {[%clk 0:02:37]}  Nxc3 {[%clk 0:02:42]} 10. bxc3 {[%clk 0:02:37]}  O-O {[%clk 0:02:42]} 11. Nd2 {[%clk 0:02:36]}  Be6 {[%clk 0:02:25]} 12. c4 {[%clk 0:02:20]}  Qd7 {[%clk 0:02:19]} 13. Nb3 {[%clk 0:02:19]}  Rad8 {[%clk 0:02:06]} 14. Be3 {[%clk 0:02:16]}  b6 {[%clk 0:02:06]} 15. a4 {[%clk 0:02:13]}  Nd4 {[%clk 0:02:05]} 16. Bxd4 {[%clk 0:02:05]}  cxd4 {[%clk 0:01:50]} 17. a5 {[%clk 0:02:01]}  Bb4 {[%clk 0:01:46]} 18. axb6 {[%clk 0:01:41]}  axb6 {[%clk 0:01:33]} 19. Rf1 {[%clk 0:01:41]}  b5 {[%clk 0:01:30]} 20. c5 {[%clk 0:01:38]}  Bxb3 {[%clk 0:01:26]} 21. c6 {[%clk 0:01:39]}  Qd6 {[%clk 0:01:21]} 22. cxb3 {[%clk 0:01:38]}  Bc3 {[%clk 0:01:11]} 23. Ra7 {[%clk 0:01:35]}  Rf7 {[%clk 0:01:08]} 24. Rb7 {[%clk 0:01:24]}  Rb8 {[%clk 0:00:58]} 25. Bd5 {[%clk 0:00:57]}  Rxb7 {[%clk 0:00:54]} 26. cxb7 {[%clk 0:00:58]}  g6 {[%clk 0:00:41]} 27. Bxf7+ {[%clk 0:00:54]}  Kxf7 {[%clk 0:00:41]} 28. Qg4 {[%clk 0:00:54]}  f5 {[%clk 0:00:34]} 29. Qf3 {[%clk 0:00:44]}  Ke6 {[%clk 0:00:18]} 30. b4 {[%clk 0:00:28]}  Kd7 {[%clk 0:00:15]} 31. g4 {[%clk 0:00:25]}  Kc7 {[%clk 0:00:07]} 32. gxf5 {[%clk 0:00:24]}  gxf5 {[%clk 0:00:07]} 33. Qxf5 {[%clk 0:00:19]}  Qg6+ {[%clk 0:00:07]} 34. Qxg6 {[%clk 0:00:18]}  hxg6 {[%clk 0:00:07]} 35. Kg2 {[%clk 0:00:18]}  Kxb7 {[%clk 0:00:06]} 36. Kf3 {[%clk 0:00:18]}  Kc6 {[%clk 0:00:07]} 37. Ke4 {[%clk 0:00:15]}  Kd6 {[%clk 0:00:06]} 38. Rb1 {[%clk 0:00:14]}  Ke6 {[%clk 0:00:05]} 39. h4 {[%clk 0:00:11]}  Bd2 {[%clk 0:00:03]} 40. Rg1 {[%clk 0:00:10]} 1-0


[Site "https://www.chess.com"]

[Event "Titled Tuesday Blitz April 11 Early 2023"]
[White "Skaric, Djuro"]
[Black "Ginzburg, Yakov"]
[WhiteFideId "934569"]
[BlackFideId "4157176"]
[WhiteElo "2282"]
[BlackElo "2305"]
[Result "1-0"]
[Round "02"]
[TimeControl "180+2"]
[Date "2023.04.11"]
[WhiteClock "0:00:22"]
[BlackClock "0:00:01"]

1. g3 {[%clk 0:03:00]}  h5 {[%clk 0:02:59]} 2. d4 {[%clk 0:02:58]}  h4 {[%clk 0:02:59]} 3. gxh4 {[%clk 0:02:58]}  Rxh4 {[%clk 0:02:58]} 4. c4 {[%clk 0:02:59]}  c6 {[%clk 0:02:58]} 5. Bg2 {[%clk 0:02:59]}  d5 {[%clk 0:02:58]} 6. Nf3 {[%clk 0:02:58]}  Rh8 {[%clk 0:02:58]} 7. Nc3 {[%clk 0:02:56]}  Nf6 {[%clk 0:02:58]} 8. h3 {[%clk 0:02:56]}  Bf5 {[%clk 0:02:55]} 9. cxd5 {[%clk 0:02:55]}  cxd5 {[%clk 0:02:55]} 10. Qb3 {[%clk 0:02:55]}  b6 {[%clk 0:02:40]} 11. Bf4 {[%clk 0:02:53]}  e6 {[%clk 0:02:39]} 12. Nb5 {[%clk 0:02:52]}  Na6 {[%clk 0:02:16]} 13. Rc1 {[%clk 0:02:46]}  Bb4+ {[%clk 0:02:13]} 14. Kf1 {[%clk 0:02:42]}  Be7 {[%clk 0:01:51]} 15. Qa4 {[%clk 0:02:34]}  Nb4 {[%clk 0:01:49]} 16. Nc7+ {[%clk 0:02:27]}  Kf8 {[%clk 0:01:49]} 17. Nxa8 {[%clk 0:02:26]}  Qxa8 {[%clk 0:01:47]} 18. a3 {[%clk 0:02:25]}  Nd3 {[%clk 0:01:28]} 19. exd3 {[%clk 0:02:23]}  Bxd3+ {[%clk 0:01:29]} 20. Kg1 {[%clk 0:02:22]}  g5 {[%clk 0:01:04]} 21. Be5 {[%clk 0:02:20]}  Kg7 {[%clk 0:00:58]} 22. Qc6 {[%clk 0:02:15]}  Qd8 {[%clk 0:00:54]} 23. Ne1 {[%clk 0:02:15]}  Bg6 {[%clk 0:00:51]} 24. Nf3 {[%clk 0:01:55]}  Qg8 {[%clk 0:00:37]} 25. Nxg5 {[%clk 0:01:52]}  Kh6 {[%clk 0:00:37]} 26. h4 {[%clk 0:01:51]}  Be4 {[%clk 0:00:25]} 27. f3 {[%clk 0:01:40]}  Bf5 {[%clk 0:00:21]} 28. Qc3 {[%clk 0:01:35]}  Qg6 {[%clk 0:00:20]} 29. Qe3 {[%clk 0:01:34]}  Kh5 {[%clk 0:00:20]} 30. Rh2 {[%clk 0:01:32]}  Rg8 {[%clk 0:00:16]} 31. Kf2 {[%clk 0:01:27]}  Nd7 {[%clk 0:00:10]} 32. Rc7 {[%clk 0:01:19]}  Nxe5 {[%clk 0:00:07]} 33. dxe5 {[%clk 0:01:11]}  Bc5 {[%clk 0:00:07]} 34. Rxc5 {[%clk 0:01:10]}  bxc5 {[%clk 0:00:07]} 35. f4 {[%clk 0:01:03]}  f6 {[%clk 0:00:06]} 36. Bf3+ {[%clk 0:01:01]}  Kh6 {[%clk 0:00:07]} 37. exf6 {[%clk 0:01:01]}  Qxf6 {[%clk 0:00:07]} 38. Qe5 {[%clk 0:00:59]}  Qxe5 {[%clk 0:00:03]} 39. fxe5 {[%clk 0:00:59]}  Rb8 {[%clk 0:00:04]} 40. Kg3 {[%clk 0:00:54]}  Rb3 {[%clk 0:00:05]} 41. Rd2 {[%clk 0:00:50]}  c4 {[%clk 0:00:03]} 42. Kf4 {[%clk 0:00:47]}  c3 {[%clk 0:00:04]} 43. bxc3 {[%clk 0:00:46]}  Rxa3 {[%clk 0:00:04]} 44. Bxd5 {[%clk 0:00:45]}  Rxc3 {[%clk 0:00:04]} 45. Bxe6 {[%clk 0:00:44]}  Bb1 {[%clk 0:00:03]} 46. Rd6 {[%clk 0:00:40]}  Kg7 {[%clk 0:00:03]} 47. h5 {[%clk 0:00:35]}  a5 {[%clk 0:00:03]} 48. Rd7+ {[%clk 0:00:35]}  Kf8 {[%clk 0:00:02]} 49. Ra7 {[%clk 0:00:34]}  Rc5 {[%clk 0:00:02]} 50. Bb3 {[%clk 0:00:24]}  Rc3 {[%clk 0:00:01]} 51. Ne6+ {[%clk 0:00:22]}  Ke8 {[%clk 0:00:01]} 52. Ba4+ {[%clk 0:00:22]} 1-0


[Site "https://www.chess.com"]

[Event "Titled Tuesday Blitz April 11 Early 2023"]
[White "Md, Imran"]
[Black "ATM622"]
[WhiteFideId "25748580"]
[WhiteElo "2217"]
[BlackElo "2270"]
[Result "1-0"]
[Round "02"]
[TimeControl "180+2"]
[Date "2023.04.11"]
[WhiteClock "0:02:33"]
[BlackClock "0:01:11"]

1. e4 {[%clk 0:03:00]}  c6 {[%clk 0:02:55]} 2. d4 {[%clk 0:03:00]}  d5 {[%clk 0:02:55]} 3. e5 {[%clk 0:03:00]}  c5 {[%clk 0:02:55]} 4. dxc5 {[%clk 0:03:00]}  e6 {[%clk 0:02:55]} 5. a3 {[%clk 0:03:00]}  Bxc5 {[%clk 0:02:55]} 6. b4 {[%clk 0:03:01]}  Bb6 {[%clk 0:02:54]} 7. Qg4 {[%clk 0:03:01]}  Ne7 {[%clk 0:02:54]} 8. Nf3 {[%clk 0:03:02]}  Nbc6 {[%clk 0:02:53]} 9. Bd3 {[%clk 0:02:59]}  Ng6 {[%clk 0:02:45]} 10. h4 {[%clk 0:02:54]}  Qc7 {[%clk 0:02:40]} 11. Bb2 {[%clk 0:02:49]}  h5 {[%clk 0:02:38]} 12. Qg3 {[%clk 0:02:46]}  Nce7 {[%clk 0:02:38]} 13. Nc3 {[%clk 0:02:43]}  a6 {[%clk 0:02:36]} 14. Na4 {[%clk 0:02:41]}  Ba7 {[%clk 0:02:33]} 15. O-O {[%clk 0:02:41]}  Bd7 {[%clk 0:02:30]} 16. Nc5 {[%clk 0:02:39]}  Bxc5 {[%clk 0:02:27]} 17. bxc5 {[%clk 0:02:40]}  Qxc5 {[%clk 0:02:23]} 18. Bd4 {[%clk 0:02:41]}  Qc7 {[%clk 0:02:19]} 19. a4 {[%clk 0:02:39]}  Nf5 {[%clk 0:02:01]} 20. Bxf5 {[%clk 0:02:35]}  exf5 {[%clk 0:01:59]} 21. e6 {[%clk 0:02:34]}  Qxg3 {[%clk 0:01:42]} 22. exd7+ {[%clk 0:02:33]}  Kxd7 {[%clk 0:01:43]} 23. fxg3 {[%clk 0:02:34]}  Rac8 {[%clk 0:01:36]} 24. Rfb1 {[%clk 0:02:30]}  Rc7 {[%clk 0:01:27]} 25. Ne5+ {[%clk 0:02:30]}  Nxe5 {[%clk 0:01:17]} 26. Bxe5 {[%clk 0:02:31]}  Rxc2 {[%clk 0:01:18]} 27. Rxb7+ {[%clk 0:02:31]}  Ke6 {[%clk 0:01:17]} 28. Bxg7 {[%clk 0:02:31]}  Rg8 {[%clk 0:01:17]} 29. Re1+ {[%clk 0:02:32]}  Kd6 {[%clk 0:01:16]} 30. Rxf7 {[%clk 0:02:33]}  Ra2 {[%clk 0:01:12]} 31. Bf8+ {[%clk 0:02:33]}  Kc6 {[%clk 0:01:11]} 32. Re6# {[%clk 0:02:33]} 1-0


[Site "https://www.chess.com"]

[Event "Titled Tuesday Blitz April 11 Early 2023"]
[White "lluiss"]
[Black "Turzo, Attila"]
[BlackFideId "704954"]
[WhiteElo "2265"]
[BlackElo "2502"]
[Result "0-1"]
[Round "02"]
[TimeControl "180+2"]
[Date "2023.04.11"]
[WhiteClock "0:00:06"]
[BlackClock "0:00:35"]

1. c4 {[%clk 0:03:00]}  c5 {[%clk 0:02:58]} 2. Nc3 {[%clk 0:03:00]}  g6 {[%clk 0:02:57]} 3. d4 {[%clk 0:02:56]}  cxd4 {[%clk 0:02:57]} 4. Qxd4 {[%clk 0:02:55]}  Nf6 {[%clk 0:02:56]} 5. e4 {[%clk 0:02:51]}  Nc6 {[%clk 0:02:53]} 6. Qd1 {[%clk 0:02:49]}  Bg7 {[%clk 0:02:52]} 7. Nf3 {[%clk 0:02:48]}  O-O {[%clk 0:02:52]} 8. Be2 {[%clk 0:02:48]}  d6 {[%clk 0:02:51]} 9. O-O {[%clk 0:02:48]}  Bg4 {[%clk 0:02:48]} 10. Ne1 {[%clk 0:02:36]}  Bxe2 {[%clk 0:02:43]} 11. Qxe2 {[%clk 0:02:35]}  Nd7 {[%clk 0:02:42]} 12. Bd2 {[%clk 0:02:34]}  Nd4 {[%clk 0:02:41]} 13. Qd1 {[%clk 0:02:30]}  Nc5 {[%clk 0:02:09]} 14. Be3 {[%clk 0:02:22]}  Nc6 {[%clk 0:02:09]} 15. Qc2 {[%clk 0:02:01]}  Nb4 {[%clk 0:02:05]} 16. Qb1 {[%clk 0:01:59]}  a5 {[%clk 0:02:03]} 17. a3 {[%clk 0:01:43]}  Nc6 {[%clk 0:02:00]} 18. Nf3 {[%clk 0:01:39]}  Nb3 {[%clk 0:01:55]} 19. Ra2 {[%clk 0:01:36]}  a4 {[%clk 0:01:56]} 20. Nd2 {[%clk 0:01:31]}  Nxd2 {[%clk 0:01:43]} 21. Bxd2 {[%clk 0:01:30]}  Ne5 {[%clk 0:01:44]} 22. b3 {[%clk 0:01:24]}  axb3 {[%clk 0:01:43]} 23. Qxb3 {[%clk 0:01:25]}  Qc7 {[%clk 0:01:36]} 24. Nd5 {[%clk 0:01:23]}  Qxc4 {[%clk 0:01:35]} 25. Nxe7+ {[%clk 0:01:23]}  Kh8 {[%clk 0:01:35]} 26. Rb1 {[%clk 0:01:10]}  b5 {[%clk 0:01:23]} 27. f3 {[%clk 0:01:04]}  Nd3 {[%clk 0:01:00]} 28. Be3 {[%clk 0:00:48]}  Bd4 {[%clk 0:00:59]} 29. Bxd4+ {[%clk 0:00:30]}  Qxd4+ {[%clk 0:01:00]} 30. Kh1 {[%clk 0:00:30]}  Nf2+ {[%clk 0:00:56]} 31. Rxf2 {[%clk 0:00:29]}  Qxf2 {[%clk 0:00:56]} 32. Qc3+ {[%clk 0:00:28]}  f6 {[%clk 0:00:57]} 33. Nd5 {[%clk 0:00:28]}  Qc5 {[%clk 0:00:53]} 34. Qb2 {[%clk 0:00:25]}  Kg7 {[%clk 0:00:48]} 35. Rc1 {[%clk 0:00:24]}  Qxa3 {[%clk 0:00:48]} 36. Rc7+ {[%clk 0:00:24]}  Kh8 {[%clk 0:00:38]} 37. Qc1 {[%clk 0:00:10]}  Qxc1+ {[%clk 0:00:36]} 38. Rxc1 {[%clk 0:00:09]}  Kg7 {[%clk 0:00:35]} 39. h3 {[%clk 0:00:09]}  Rfc8 {[%clk 0:00:34]} 40. Rb1 {[%clk 0:00:08]}  Rab8 {[%clk 0:00:35]} 41. Rb4 {[%clk 0:00:09]}  Rc4 {[%clk 0:00:34]} 42. Rb3 {[%clk 0:00:09]}  b4 {[%clk 0:00:35]} 43. Ne7 {[%clk 0:00:09]}  Rc3 {[%clk 0:00:34]} 44. Rb2 {[%clk 0:00:08]}  b3 {[%clk 0:00:34]} 45. Nd5 {[%clk 0:00:06]}  Rc2 {[%clk 0:00:35]} 46. Rb1 {[%clk 0:00:06]}  b2 {[%clk 0:00:35]} 0-1


[Site "https://www.chess.com"]

[Event "Titled Tuesday Blitz April 11 Early 2023"]
[White "Levitan, Caleb Levi"]
[Black "Shapiro, Viktor"]
[WhiteFideId "14332620"]
[BlackFideId "4175700"]
[WhiteElo "1963"]
[BlackElo "2152"]
[Result "1-0"]
[Round "02"]
[TimeControl "180+2"]
[Date "2023.04.11"]
[WhiteClock "0:02:21"]
[BlackClock "0:01:46"]

1. e4 {[%clk 0:03:00]}  Nf6 {[%clk 0:02:59]} 2. e5 {[%clk 0:02:58]}  Nd5 {[%clk 0:02:58]} 3. d4 {[%clk 0:02:58]}  d6 {[%clk 0:02:58]} 4. c4 {[%clk 0:02:57]}  Nb6 {[%clk 0:02:58]} 5. exd6 {[%clk 0:02:57]}  cxd6 {[%clk 0:02:56]} 6. Nc3 {[%clk 0:02:57]}  g6 {[%clk 0:02:52]} 7. Be3 {[%clk 0:02:55]}  Bg7 {[%clk 0:02:48]} 8. Be2 {[%clk 0:02:55]}  Nc6 {[%clk 0:02:40]} 9. h3 {[%clk 0:02:47]}  O-O {[%clk 0:02:32]} 10. Nf3 {[%clk 0:02:47]}  e5 {[%clk 0:02:16]} 11. O-O {[%clk 0:02:41]}  h6 {[%clk 0:01:46]} 12. Qd2 {[%clk 0:02:21]} 1-0


[Site "https://www.chess.com"]

[Event "Titled Tuesday Blitz April 11 Early 2023"]
[White "Albuquerque Junior,Wellington S."]
[Black "Mammadzada, Gunay"]
[WhiteFideId "2151480"]
[BlackFideId "13403729"]
[WhiteElo "2109"]
[BlackElo "2396"]
[Result "0-1"]
[Round "02"]
[TimeControl "180+2"]
[Date "2023.04.11"]
[WhiteClock "0:00:02"]
[BlackClock "0:00:15"]

1. c4 {[%clk 0:03:00]}  c6 {[%clk 0:02:50]} 2. Nf3 {[%clk 0:03:00]}  d5 {[%clk 0:02:43]} 3. g3 {[%clk 0:02:59]}  Bg4 {[%clk 0:02:39]} 4. Ne5 {[%clk 0:02:57]}  Be6 {[%clk 0:02:37]} 5. d4 {[%clk 0:02:44]}  dxc4 {[%clk 0:02:36]} 6. Bg2 {[%clk 0:02:41]}  Nd7 {[%clk 0:02:34]} 7. Nxd7 {[%clk 0:02:25]}  Qxd7 {[%clk 0:02:33]} 8. Nc3 {[%clk 0:02:24]}  Rd8 {[%clk 0:02:26]} 9. e3 {[%clk 0:02:17]}  g6 {[%clk 0:02:24]} 10. O-O {[%clk 0:02:13]}  Bg7 {[%clk 0:02:25]} 11. a4 {[%clk 0:02:11]}  Nf6 {[%clk 0:02:25]} 12. a5 {[%clk 0:02:11]}  h5 {[%clk 0:02:20]} 13. e4 {[%clk 0:01:55]}  h4 {[%clk 0:02:16]} 14. e5 {[%clk 0:01:47]}  Nd5 {[%clk 0:02:05]} 15. Ne4 {[%clk 0:01:44]}  hxg3 {[%clk 0:02:02]} 16. fxg3 {[%clk 0:01:24]}  b6 {[%clk 0:01:27]} 17. axb6 {[%clk 0:01:08]}  axb6 {[%clk 0:01:28]} 18. Ng5 {[%clk 0:00:32]}  Bf5 {[%clk 0:00:58]} 19. Nxf7 {[%clk 0:00:09]}  Kxf7 {[%clk 0:00:56]} 20. g4 {[%clk 0:00:09]}  e6 {[%clk 0:00:43]} 21. gxf5 {[%clk 0:00:08]}  gxf5 {[%clk 0:00:42]} 22. Bg5 {[%clk 0:00:08]}  Rdg8 {[%clk 0:00:38]} 23. Qf3 {[%clk 0:00:07]}  Bxe5 {[%clk 0:00:36]} 24. dxe5 {[%clk 0:00:07]}  Rxg5 {[%clk 0:00:36]} 25. Kh1 {[%clk 0:00:06]}  Rhg8 {[%clk 0:00:35]} 26. Rf2 {[%clk 0:00:07]}  Qc7 {[%clk 0:00:31]} 27. Re1 {[%clk 0:00:06]}  b5 {[%clk 0:00:31]} 28. Qh3 {[%clk 0:00:06]}  Qa7 {[%clk 0:00:22]} 29. Rfe2 {[%clk 0:00:03]}  Qd4 {[%clk 0:00:20]} 30. Bf3 {[%clk 0:00:03]}  R8g7 {[%clk 0:00:17]} 31. Bh5+ {[%clk 0:00:03]}  Ke7 {[%clk 0:00:16]} 32. Bf3 {[%clk 0:00:01]}  Nf4 {[%clk 0:00:16]} 33. Qh8 {[%clk 0:00:02]}  Nxe2 {[%clk 0:00:15]} 0-1


[Site "https://www.chess.com"]

[Event "Titled Tuesday Blitz April 11 Early 2023"]
[White "babbilator"]
[Black "Lorenzo De La Riva, Lazaro"]
[BlackFideId "2268809"]
[WhiteElo "2257"]
[BlackElo "2294"]
[Result "1-0"]
[Round "02"]
[TimeControl "180+2"]
[Date "2023.04.11"]
[WhiteClock "0:00:13"]
[BlackClock "0:00:04"]

1. e4 {[%clk 0:03:00]}  c5 {[%clk 0:02:59]} 2. Nc3 {[%clk 0:03:01]}  Nc6 {[%clk 0:02:58]} 3. Nf3 {[%clk 0:02:59]}  e6 {[%clk 0:02:57]} 4. d4 {[%clk 0:02:58]}  cxd4 {[%clk 0:02:58]} 5. Nxd4 {[%clk 0:02:57]}  Nf6 {[%clk 0:02:59]} 6. Ndb5 {[%clk 0:02:37]}  Bb4 {[%clk 0:02:58]} 7. a3 {[%clk 0:02:35]}  Bxc3+ {[%clk 0:02:55]} 8. Nxc3 {[%clk 0:02:36]}  d5 {[%clk 0:02:55]} 9. exd5 {[%clk 0:02:34]}  exd5 {[%clk 0:02:56]} 10. Bd3 {[%clk 0:02:30]}  O-O {[%clk 0:02:56]} 11. O-O {[%clk 0:02:29]}  d4 {[%clk 0:02:55]} 12. Ne2 {[%clk 0:02:27]}  Bg4 {[%clk 0:02:55]} 13. Bg5 {[%clk 0:02:19]}  Bh5 {[%clk 0:02:51]} 14. Qd2 {[%clk 0:02:14]}  Bg6 {[%clk 0:02:46]} 15. Rad1 {[%clk 0:02:10]}  Rc8 {[%clk 0:02:20]} 16. Rfe1 {[%clk 0:02:01]}  Qd6 {[%clk 0:02:15]} 17. Bh4 {[%clk 0:01:41]}  Rfe8 {[%clk 0:01:59]} 18. h3 {[%clk 0:01:36]}  Ne4 {[%clk 0:01:48]} 19. Bxe4 {[%clk 0:01:36]}  Rxe4 {[%clk 0:01:47]} 20. Bg3 {[%clk 0:01:31]}  Qc5 {[%clk 0:01:47]} 21. f3 {[%clk 0:01:27]}  Ree8 {[%clk 0:01:15]} 22. Nxd4 {[%clk 0:01:23]}  Rxe1+ {[%clk 0:00:50]} 23. Bxe1 {[%clk 0:01:21]}  Nxd4 {[%clk 0:00:45]} 24. Qxd4 {[%clk 0:01:16]}  Qxd4+ {[%clk 0:00:46]} 25. Rxd4 {[%clk 0:01:16]}  Bxc2 {[%clk 0:00:46]} 26. Rd7 {[%clk 0:01:08]}  b5 {[%clk 0:00:40]} 27. Rxa7 {[%clk 0:01:03]}  Bd3 {[%clk 0:00:40]} 28. Bc3 {[%clk 0:01:02]}  f6 {[%clk 0:00:36]} 29. Kf2 {[%clk 0:00:58]}  h5 {[%clk 0:00:36]} 30. g4 {[%clk 0:00:58]}  h4 {[%clk 0:00:34]} 31. f4 {[%clk 0:00:53]}  Re8 {[%clk 0:00:29]} 32. g5 {[%clk 0:00:53]}  Re2+ {[%clk 0:00:23]} 33. Kf3 {[%clk 0:00:53]}  Re6 {[%clk 0:00:24]} 34. gxf6 {[%clk 0:00:51]}  gxf6 {[%clk 0:00:23]} 35. Kg4 {[%clk 0:00:51]}  Be2+ {[%clk 0:00:14]} 36. Kxh4 {[%clk 0:00:48]}  f5 {[%clk 0:00:15]} 37. Kg5 {[%clk 0:00:44]}  Bd3 {[%clk 0:00:14]} 38. h4 {[%clk 0:00:41]}  Re2 {[%clk 0:00:13]} 39. Kf6 {[%clk 0:00:32]}  Rh2 {[%clk 0:00:11]} 40. Ra8+ {[%clk 0:00:30]}  Kh7 {[%clk 0:00:10]} 41. Kf7 {[%clk 0:00:16]}  Bc4+ {[%clk 0:00:11]} 42. Kf6 {[%clk 0:00:15]}  Rxh4 {[%clk 0:00:09]} 43. Ra7+ {[%clk 0:00:15]}  Kg8 {[%clk 0:00:08]} 44. Ra8+ {[%clk 0:00:15]}  Kh7 {[%clk 0:00:09]} 45. Kg5 {[%clk 0:00:14]}  Rh1 {[%clk 0:00:04]} 46. Rh8# {[%clk 0:00:13]} 1-0


[Site "https://www.chess.com"]

[Event "Titled Tuesday Blitz April 11 Early 2023"]
[White "Lauridsen, Jesper Morch"]
[Black "Lopez, Henry"]
[WhiteFideId "1401890"]
[BlackFideId "5203830"]
[WhiteElo "2247"]
[BlackElo "2177"]
[Result "1-0"]
[Round "02"]
[TimeControl "180+2"]
[Date "2023.04.11"]
[WhiteClock "0:01:26"]
[BlackClock "0:00:55"]

1. e4 {[%clk 0:03:00]}  c5 {[%clk 0:02:58]} 2. Nf3 {[%clk 0:03:00]}  d6 {[%clk 0:02:58]} 3. d4 {[%clk 0:03:00]}  cxd4 {[%clk 0:02:58]} 4. Nxd4 {[%clk 0:03:01]}  Nf6 {[%clk 0:02:58]} 5. Nc3 {[%clk 0:03:01]}  a6 {[%clk 0:02:59]} 6. h3 {[%clk 0:03:00]}  e5 {[%clk 0:02:59]} 7. Nde2 {[%clk 0:02:59]}  h5 {[%clk 0:02:57]} 8. Bg5 {[%clk 0:02:57]}  Be6 {[%clk 0:02:57]} 9. Nd5 {[%clk 0:02:54]}  Nbd7 {[%clk 0:02:57]} 10. Nec3 {[%clk 0:02:49]}  Rc8 {[%clk 0:02:53]} 11. Be2 {[%clk 0:02:46]}  Be7 {[%clk 0:02:31]} 12. Nxe7 {[%clk 0:02:42]}  Qxe7 {[%clk 0:02:30]} 13. Qd2 {[%clk 0:02:40]}  Rc6 {[%clk 0:02:22]} 14. Nd5 {[%clk 0:02:32]}  Bxd5 {[%clk 0:02:00]} 15. exd5 {[%clk 0:02:31]}  Rc5 {[%clk 0:01:58]} 16. c4 {[%clk 0:02:26]}  Qd8 {[%clk 0:01:42]} 17. Bd3 {[%clk 0:01:53]}  O-O {[%clk 0:01:30]} 18. O-O {[%clk 0:01:51]}  a5 {[%clk 0:01:25]} 19. b3 {[%clk 0:01:48]}  Re8 {[%clk 0:01:23]} 20. Rae1 {[%clk 0:01:44]}  Rc8 {[%clk 0:01:14]} 21. Bf5 {[%clk 0:01:44]}  Ra8 {[%clk 0:01:05]} 22. Qd1 {[%clk 0:01:32]}  a4 {[%clk 0:00:57]} 23. Bxd7 {[%clk 0:01:26]}  Qxd7 {[%clk 0:00:55]} 24. Bxf6 {[%clk 0:01:26]}  gxf6 {[%clk 0:00:54]} 25. Qxh5 {[%clk 0:01:27]}  Kg7 {[%clk 0:00:55]} 26. Re3 {[%clk 0:01:26]} 1-0


[Site "https://www.chess.com"]

[Event "Titled Tuesday Blitz April 11 Early 2023"]
[White "Shubenkova, Veronika"]
[Black "Lakshmi C"]
[WhiteFideId "44124040"]
[BlackFideId "25035347"]
[WhiteElo "2027"]
[BlackElo "1942"]
[Result "0-1"]
[Round "02"]
[TimeControl "180+2"]
[Date "2023.04.11"]
[WhiteClock "0:00:14"]
[BlackClock "0:00:14"]

1. e4 {[%clk 0:03:00]}  c5 {[%clk 0:02:58]} 2. Nc3 {[%clk 0:03:00]}  Nc6 {[%clk 0:02:57]} 3. g3 {[%clk 0:03:01]}  e5 {[%clk 0:02:56]} 4. Bg2 {[%clk 0:03:02]}  d6 {[%clk 0:02:55]} 5. d3 {[%clk 0:03:02]}  g6 {[%clk 0:02:56]} 6. f4 {[%clk 0:03:02]}  Bg7 {[%clk 0:02:56]} 7. Nf3 {[%clk 0:03:02]}  Nge7 {[%clk 0:02:56]} 8. O-O {[%clk 0:03:02]}  f5 {[%clk 0:02:56]} 9. Ng5 {[%clk 0:03:01]}  O-O {[%clk 0:02:54]} 10. Ne2 {[%clk 0:03:00]}  h6 {[%clk 0:02:52]} 11. Nf3 {[%clk 0:02:59]}  Be6 {[%clk 0:02:47]} 12. c3 {[%clk 0:02:58]}  fxe4 {[%clk 0:02:37]} 13. dxe4 {[%clk 0:02:58]}  Bc4 {[%clk 0:02:27]} 14. Be3 {[%clk 0:02:54]}  b6 {[%clk 0:02:25]} 15. Qc2 {[%clk 0:02:54]}  Qc7 {[%clk 0:02:14]} 16. b3 {[%clk 0:02:53]}  Be6 {[%clk 0:02:12]} 17. Rad1 {[%clk 0:02:52]}  Rad8 {[%clk 0:02:10]} 18. Nh4 {[%clk 0:02:47]}  Kh7 {[%clk 0:02:01]} 19. f5 {[%clk 0:02:47]}  Bc8 {[%clk 0:01:53]} 20. fxg6+ {[%clk 0:02:46]}  Nxg6 {[%clk 0:01:53]} 21. Nf5 {[%clk 0:02:45]}  Nce7 {[%clk 0:01:39]} 22. Nxg7 {[%clk 0:02:44]}  Kxg7 {[%clk 0:01:39]} 23. Qc1 {[%clk 0:02:44]}  Ng8 {[%clk 0:01:32]} 24. Qd2 {[%clk 0:02:42]}  Bg4 {[%clk 0:01:29]} 25. h3 {[%clk 0:02:41]}  Be6 {[%clk 0:01:29]} 26. c4 {[%clk 0:02:39]}  Qc8 {[%clk 0:01:28]} 27. Kh2 {[%clk 0:02:39]}  a6 {[%clk 0:01:23]} 28. Nc3 {[%clk 0:02:39]}  Qb7 {[%clk 0:01:11]} 29. Nd5 {[%clk 0:02:39]}  b5 {[%clk 0:01:11]} 30. Bf3 {[%clk 0:02:17]}  Qc8 {[%clk 0:00:59]} 31. h4 {[%clk 0:02:14]}  Bg4 {[%clk 0:00:56]} 32. Qe2 {[%clk 0:01:54]}  Bxf3 {[%clk 0:00:44]} 33. Rxf3 {[%clk 0:01:53]}  Rxf3 {[%clk 0:00:44]} 34. Qxf3 {[%clk 0:01:53]}  Rf8 {[%clk 0:00:44]} 35. Qg2 {[%clk 0:01:52]}  Qg4 {[%clk 0:00:42]} 36. cxb5 {[%clk 0:01:33]}  Qxd1 {[%clk 0:00:38]} 37. h5 {[%clk 0:01:26]}  Qxh5+ {[%clk 0:00:37]} 38. Kg1 {[%clk 0:01:20]}  Qd1+ {[%clk 0:00:35]} 39. Kh2 {[%clk 0:01:19]}  axb5 {[%clk 0:00:35]} 40. Nc7 {[%clk 0:01:17]}  Rf3 {[%clk 0:00:26]} 41. Bg1 {[%clk 0:01:01]}  Nf6 {[%clk 0:00:23]} 42. Qh3 {[%clk 0:00:56]}  Qe2+ {[%clk 0:00:21]} 43. Kh1 {[%clk 0:00:54]}  Qxe4 {[%clk 0:00:15]} 44. Ne6+ {[%clk 0:00:45]}  Kf7 {[%clk 0:00:14]} 45. Nd8+ {[%clk 0:00:14]}  Kg7 {[%clk 0:00:14]} 0-1


[Site "https://www.chess.com"]